bitfinex-derivatives/quotes_BTCF0:USTF0_20250517
["timestamp","ask_amount","ask_price","bid_price","bid_amount"]
[1747446747562,0.0679,102730.0,102720.0,1.46930887]
[1747446747759,0.0679,102730.0,102720.0,1.50030887]
[1747446747963,0.0679,102730.0,102720.0,1.4278257]
[1747446748260,0.2625075,102730.0,102720.0,1.91720887]
[1747446748460,0.0679,102730.0,102720.0,1.91720887]
[1747446750462,0.0679,102730.0,102720.0,1.98969204]
[1747446751964,0.0679,102730.0,102720.0,1.99964147]
[1747446753661,0.0679,102730.0,102720.0,1.85467513]
[1747446753860,0.0679,102730.0,102720.0,1.99964147]
[1747446754958,0.0679,102730.0,102720.0,1.85467513]
[1747446755158,0.0679,102730.0,102720.0,1.99964147]
[1747446755767,0.0679,102730.0,102720.0,2.13964147]
[1747446755965,0.0679,102730.0,102720.0,1.99467513]
[1747446756168,0.0679,102730.0,102720.0,2.13964147]
[1747446757962,0.0679,102730.0,102720.0,1.99467513]
[1747446758264,0.0679,102730.0,102720.0,2.13964147]
[1747446759868,0.0679,102730.0,102720.0,1.99467513]
[1747446760059,0.0679,102730.0,102720.0,2.13964147]
[1747446764273,0.05595162,102740.0,102730.0,0.1946076]
[1747446764570,0.06168952,102750.0,102740.0,0.1945886]
[1747446764762,0.06168952,102750.0,102740.0,1.22565494]
[1747446765266,0.06168952,102750.0,102740.0,1.0806886]
[1747446765472,0.03897863,102760.0,102750.0,0.1945696]
[1747446765770,0.06967863,102760.0,102750.0,0.79317849]
[1747446765972,0.08420347,102760.0,102750.0,0.79317849]
[1747446766476,0.27875417,102760.0,102750.0,0.78323594]
[1747446767471,0.14690347,102760.0,102750.0,1.64403594]
[1747446767864,0.14690347,102760.0,102750.0,1.67623594]
[1747446768257,0.14690347,102760.0,102750.0,1.5312696]
[1747446768461,0.14690347,102760.0,102750.0,1.67623594]
[1747446768871,0.14690347,102760.0,102750.0,1.5312696]
[1747446769071,0.14690347,102760.0,102750.0,1.67623594]
[1747446769465,0.10992484,102760.0,102750.0,1.67623594]
[1747446769862,0.10992484,102760.0,102750.0,1.78623594]
[1747446769863,0.0954,102760.0,102750.0,1.78623594]
[1747446770071,0.0653,102760.0,102750.0,1.78623594]
[1747446771474,0.2598507,102760.0,102750.0,1.75403594]
[1747446771773,0.0963,102760.0,102750.0,1.68255277]
[1747446772575,0.0973,102760.0,102750.0,1.68155277]
[1747446773174,0.0973,102760.0,102750.0,1.32075277]
[1747446773372,0.0973,102760.0,102750.0,1.68155277]
[1747446773766,0.0973,102760.0,102750.0,2.02007277]
[1747446777574,0.2918507,102760.0,102750.0,1.9475896]
[1747446778369,0.2918507,102760.0,102750.0,1.5867896]
[1747446779369,0.2918507,102760.0,102750.0,1.5546896]
[1747446781274,0.2918507,102760.0,102750.0,1.5874896]
[1747446782069,0.0973,102760.0,102750.0,1.65997277]
[1747446782275,0.0973,102760.0,102750.0,2.02077277]
[1747446782467,0.0973,102760.0,102750.0,1.65997277]
[1747446784480,0.0973,102760.0,102750.0,2.02077277]
[1747446785087,0.0993,102760.0,102750.0,2.02177277]
[1747446785687,0.0366,102760.0,102750.0,2.02177277]
[1747446785868,0.005,102760.0,102750.0,2.02177277]
[1747446786267,0.005,102760.0,102750.0,2.09425594]
[1747446787181,0.005,102760.0,102750.0,1.75573594]
[1747446787384,0.005,102760.0,102750.0,2.02177277]
[1747446788680,0.0359,102760.0,102750.0,1.68325277]
[1747446788869,0.0665,102760.0,102750.0,1.6107696]
[1747446789184,0.0665,102760.0,102750.0,1.2499696]
[1747446791181,0.0665,102760.0,102750.0,1.6107696]
[1747446792082,0.0665,102760.0,102750.0,1.2499696]
[1747446792083,0.2610507,102760.0,102750.0,1.2499696]
[1747446792884,0.2610507,102760.0,102750.0,1.6107696]
[1747446793078,0.2610507,102760.0,102750.0,1.2499696]
[1747446793585,0.0665,102760.0,102750.0,1.6107696]
[1747446794082,0.0665,102760.0,102750.0,1.2499696]
[1747446794494,0.2610507,102760.0,102750.0,1.2499696]
[1747446794790,0.0665,102760.0,102750.0,1.2499696]
[1747446795384,0.2610507,102760.0,102750.0,1.2499696]
[1747446797493,0.0665,102760.0,102750.0,1.2499696]
[1747446797879,0.0665,102760.0,102750.0,1.68325277]
[1747446798276,0.005,102760.0,102750.0,1.6107696]
[1747446798789,0.005,102760.0,102750.0,1.68325277]
[1747446799284,0.0382,102760.0,102750.0,1.68325277]
[1747446799486,0.2327507,102760.0,102750.0,1.2499696]
[1747446799688,0.2651507,102760.0,102750.0,1.2499696]
[1747446799889,0.69843387,102760.0,102750.0,0.5754]
[1747446800195,0.6259507,102760.0,102750.0,0.7371696]
[1747446801094,0.6259507,102760.0,102750.0,0.2371696]
[1747446802087,0.4314,102760.0,102750.0,0.2371696]
[1747446802286,0.6259507,102760.0,102750.0,0.6104696]
[1747446802598,0.4314,102760.0,102750.0,0.68295277]
[1747446802804,0.6259507,102760.0,102750.0,0.68295277]
[1747446802986,0.42981483,102760.0,102750.0,0.68295277]
[1747446803290,0.03581483,102760.0,102750.0,1.11623594]
[1747446803494,0.03581483,102760.0,102750.0,1.04375277]
[1747446803797,0.03581483,102760.0,102750.0,1.54375277]
[1747446804296,0.03581483,102760.0,102750.0,1.87859277]
[1747446804495,0.03581483,102760.0,102750.0,1.8061096]
[1747446804692,0.03581483,102760.0,102750.0,1.95107594]
[1747446804892,0.03581483,102760.0,102750.0,1.8061096]
[1747446805190,0.03581483,102760.0,102750.0,1.95107594]
[1747446805406,0.03581483,102760.0,102750.0,2.09107594]
[1747446806199,0.03581483,102760.0,102750.0,2.01859277]
[1747446806993,0.005,102760.0,102750.0,2.09107594]
[1747446807600,0.005,102760.0,102750.0,1.9461096]
[1747446807795,0.005,102760.0,102750.0,2.09107594]
[1747446808100,0.005,102760.0,102750.0,2.50797594]
[1747446810502,0.03227547,102770.0,102760.0,0.1945507]
[1747446810701,0.03227547,102770.0,102760.0,1.08283387]
[1747446811197,0.00146064,102770.0,102760.0,1.08283387]
[1747446811599,0.00346064,102770.0,102760.0,1.08283387]
[1747446812100,0.00346064,102770.0,102760.0,1.58283387]
[1747446812403,0.00646064,102770.0,102760.0,1.58383387]
[1747446814129,0.00646064,102770.0,102760.0,2.00073387]
[1747446815807,0.00646064,102770.0,102760.0,1.9282507]
[1747446816007,0.00646064,102770.0,102760.0,2.00073387]
[1747446818505,0.00646064,102770.0,102760.0,1.9282507]
[1747446818705,0.00646064,102770.0,102760.0,2.00073387]
[1747446819409,0.00646064,102770.0,102760.0,1.9282507]
[1747446819604,0.00646064,102770.0,102760.0,2.00073387]
[1747446820711,0.00646064,102770.0,102760.0,1.9282507]
[1747446820910,0.00646064,102770.0,102760.0,2.00073387]
[1747446821513,0.00646064,102770.0,102760.0,1.9282507]
[1747446821713,0.00646064,102770.0,102760.0,2.00073387]
[1747446823108,0.00646064,102770.0,102760.0,1.9282507]
[1747446823308,0.00646064,102770.0,102760.0,2.00073387]
[1747446823607,0.00646064,102770.0,102760.0,2.33553387]
[1747446823808,0.00646064,102770.0,102760.0,2.00073387]
[1747446824109,0.29539244,102770.0,102760.0,1.58993387]
[1747446824306,0.29539244,102770.0,102760.0,1.1438507]
[1747446824512,0.29539244,102770.0,102760.0,1.5238507]
[1747446828740,0.10086064,102770.0,102760.0,1.5238507]
[1747446828922,0.10086064,102770.0,102760.0,1.59633387]
[1747446829126,0.10086064,102770.0,102760.0,1.21003387]
[1747446829530,0.10086064,102770.0,102760.0,1.57083387]
[1747446829728,0.10086064,102770.0,102760.0,1.60313387]
[1747446829927,0.12549267,102770.0,102760.0,1.60313387]
[1747446832926,0.12549267,102770.0,102760.0,1.5306507]
[1747446833124,0.12549267,102770.0,102760.0,1.60313387]
[1747446835328,0.14172762,102770.0,102760.0,2.02003387]
[1747446836532,0.10842762,102770.0,102760.0,2.02003387]
[1747446837533,0.10842762,102770.0,102760.0,1.9475507]
[1747446838127,0.10842762,102770.0,102760.0,2.02003387]
[1747446838530,0.10842762,102770.0,102760.0,1.9475507]
[1747446838730,0.10842762,102770.0,102760.0,2.02003387]
[1747446839933,0.10842762,102770.0,102760.0,1.9475507]
[1747446840136,0.13952762,102770.0,102760.0,2.02003387]
[1747446840324,0.10842762,102770.0,102760.0,2.02003387]
[1747446840528,0.04732762,102770.0,102760.0,2.02003387]
[1747446841132,0.04732762,102770.0,102760.0,1.60313387]
[1747446842941,1.77232762,102770.0,102760.0,1.60313387]
[1747446843631,1.77232762,102770.0,102760.0,1.5306507]
[1747446843833,1.77232762,102770.0,102760.0,1.60313387]
[1747446844531,1.7561276,102770.0,102760.0,1.60313387]
[1747446844835,1.7561276,102770.0,102760.0,1.74313387]
[1747446845031,1.7561276,102770.0,102760.0,2.16003387]
[1747446845939,1.7561276,102770.0,102760.0,2.49327387]
[1747446847234,0.03181483,102780.0,102770.0,0.1945318]
[1747446847434,0.04273863,102790.0,102780.0,0.33947914]
[1747446847739,0.04273863,102790.0,102780.0,1.13827914]
[1747446848437,0.04273863,102790.0,102780.0,1.22827914]
[1747446848738,0.04273863,102790.0,102780.0,1.97821914]
[1747446849135,0.04273863,102790.0,102780.0,1.9879851]
[1747446849136,0.0365795,102790.0,102780.0,1.9879851]
[1747446849440,0.0365795,102790.0,102780.0,2.4879851]
[1747446849635,0.13897863,102800.0,102790.0,0.26697707]
[1747446849939,0.13897863,102800.0,102790.0,1.3340739]
[1747446850142,0.13897863,102800.0,102790.0,1.40655707]
[1747446850833,0.13997863,102800.0,102790.0,1.40655707]
[1747446851034,0.13997863,102800.0,102790.0,1.52655707]
[1747446851232,0.13650266,102820.0,102810.0,0.1944561]
[1747446851433,0.13650266,102820.0,102810.0,1.00773927]
[1747446851636,0.10630266,102820.0,102810.0,1.14282244]
[1747446852035,0.04340266,102820.0,102810.0,1.92052244]
[1747446852235,0.04340266,102820.0,102810.0,2.25440244]
[1747446852637,0.04340266,102820.0,102810.0,2.39440244]
[1747446853542,0.04840266,102820.0,102810.0,2.89440244]
[1747446853744,0.05440266,102820.0,102810.0,2.89540244]
[1747446854237,0.05440266,102820.0,102810.0,2.82291927]
[1747446854635,0.0443,102820.0,102810.0,2.82291927]
[1747446855642,0.0443,102820.0,102810.0,2.83761341]
[1747446856345,0.012,102820.0,102810.0,2.83761341]
[1747446856537,0.012,102820.0,102810.0,2.91009658]
[1747446857645,0.0424,102820.0,102810.0,2.83761341]
[1747446861950,0.0424,102820.0,102810.0,2.76513024]
[1747446862147,0.0424,102820.0,102810.0,2.83761341]
[1747446863437,0.012,102820.0,102810.0,2.83761341]
[1747446863644,0.012,102820.0,102810.0,2.91009658]
[1747446864446,0.002,102840.0,102830.0,0.1944183]
[1747446864749,0.095,102840.0,102830.0,0.67960147]
[1747446865248,0.275,102840.0,102830.0,0.67960147]
[1747446866043,0.275,102840.0,102830.0,1.04040147]
[1747446866246,0.095,102840.0,102830.0,1.04040147]
[1747446866540,0.095,102840.0,102830.0,1.54040147]
[1747446868354,0.11339512,102840.0,102830.0,1.54040147]
[1747446868853,0.11339512,102840.0,102830.0,1.4679183]
[1747446869050,0.11339512,102840.0,102830.0,1.54040147]
[1747446869249,0.11339512,102840.0,102830.0,1.55020193]
[1747446873060,0.11339512,102840.0,102830.0,1.7998783]
[1747446873378,0.11339512,102840.0,102830.0,1.87236147]
[1747446873784,0.11339512,102840.0,102830.0,1.7998783]
[1747446874281,0.11339512,102840.0,102830.0,2.28926147]
[1747446874466,0.11339512,102840.0,102830.0,2.2167783]
[1747446874679,0.11339512,102840.0,102830.0,2.28926147]
[1747446874882,0.30779452,102840.0,102830.0,1.5240183]
[1747446875187,0.84859452,102840.0,102830.0,1.4935183]
[1747446875381,0.84859452,102840.0,102830.0,1.1113183]
[1747446875687,0.84859452,102840.0,102830.0,1.1913183]
[1747446876177,0.84959452,102840.0,102830.0,1.1913183]
[1747446876380,0.92207769,102840.0,102830.0,1.1913183]
[1747446876880,0.90268257,102840.0,102830.0,1.1913183]
[1747446877085,0.6501994,102840.0,102830.0,1.1913183]
[1747446877594,0.2893994,102840.0,102830.0,1.1913183]
[1747446877776,0.6511994,102840.0,102830.0,1.2213183]
[1747446877973,0.2903994,102840.0,102830.0,1.2213183]
[1747446878287,0.6531994,102840.0,102830.0,1.2213183]
[1747446879189,0.6531994,102840.0,102830.0,1.4213183]
[1747446879675,0.2923994,102840.0,102830.0,1.4213183]
[1747446879881,0.6531994,102840.0,102830.0,1.4213183]
[1747446880076,0.6531994,102840.0,102830.0,1.0044183]
[1747446880283,0.2923994,102840.0,102830.0,1.0044183]
[1747446880581,0.098,102840.0,102830.0,1.10700147]
[1747446881078,0.098,102840.0,102830.0,1.14010147]
[1747446881384,0.278,102840.0,102830.0,1.14010147]
[1747446881773,0.276,102840.0,102830.0,1.14010147]
[1747446882188,0.275,102840.0,102830.0,1.14010147]
[1747446882584,0.275,102840.0,102830.0,1.0676183]
[1747446882777,0.275,102840.0,102830.0,1.14010147]
[1747446883481,0.275,102840.0,102830.0,1.50090147]
[1747446883881,0.275,102840.0,102830.0,1.14010147]
[1747446884070,0.275,102840.0,102830.0,1.50090147]
[1747446884268,0.095,102840.0,102830.0,1.50090147]
[1747446885056,0.095,102840.0,102830.0,1.4284183]
[1747446885257,0.095,102840.0,102830.0,1.50090147]
[1747446885656,0.0635,102840.0,102830.0,1.50090147]
[1747446885858,0.002,102840.0,102830.0,1.50090147]
[1747446886359,0.002,102840.0,102830.0,1.50290147]
[1747446886862,0.002,102840.0,102830.0,1.50390147]
[1747446889050,0.002,102840.0,102830.0,1.92080147]
[1747446890157,0.0321,102840.0,102830.0,1.92080147]
[1747446890549,0.0321,102840.0,102830.0,2.25272147]
[1747446890752,0.0644,102840.0,102830.0,1.92080147]
[1747446892164,0.0644,102840.0,102830.0,1.50390147]
[1747446895558,0.0644,102840.0,102830.0,1.0375183]
[1747446896167,0.24555366,102840.0,102830.0,1.0375183]
[1747446896959,0.24555366,102840.0,102830.0,1.46980147]
[1747446897369,0.21325366,102840.0,102830.0,1.46980147]
[1747446897572,0.21325366,102840.0,102830.0,1.46780147]
[1747446897769,0.21348601,102840.0,102830.0,1.46780147]
[1747446898167,0.03348601,102840.0,102830.0,1.46780147]
[1747446898570,0.03348601,102840.0,102830.0,1.46980147]
[1747446898978,0.06348601,102840.0,102830.0,1.3973183]
[1747446899171,0.93116848,102840.0,102830.0,0.7765183]
[1747446899372,0.93134789,102840.0,102830.0,0.7765183]
[1747446899564,0.93134789,102840.0,102830.0,0.7775183]
[1747446899972,0.73134789,102840.0,102830.0,0.7775183]
[1747446900174,0.83886472,102840.0,102830.0,0.7775183]
[1747446900575,0.83886472,102840.0,102830.0,1.1265183]
[1747446900778,0.83886472,102840.0,102830.0,1.1245183]
[1747446900986,0.79886472,102840.0,102830.0,0.7645183]
[1747446901571,0.87134789,102840.0,102830.0,0.7244183]
[1747446901880,0.87134789,102840.0,102830.0,0.6944183]
[1747446902078,0.87134789,102840.0,102830.0,0.1944183]
[1747446902275,0.1944182,102830.0,102820.0,0.355735]
[1747446902578,0.72356679,102830.0,102820.0,0.321635]
[1747446902784,0.88081879,102830.0,102820.0,0.291635]
[1747446903084,1.26081879,102830.0,102820.0,0.243029]
[1747446903280,1.18833562,102830.0,102820.0,0.243029]
[1747446903577,1.51669562,102830.0,102820.0,0.274829]
[1747446903783,1.51869562,102830.0,102820.0,0.274829]
[1747446904080,1.33869562,102830.0,102820.0,0.274829]
[1747446904580,1.33969562,102830.0,102820.0,0.274829]
[1747446905284,1.07969562,102830.0,102820.0,0.644829]
[1747446905485,0.75133562,102830.0,102820.0,0.676329]
[1747446906577,0.65408362,102830.0,102820.0,0.676329]
[1747446906783,0.70099969,102830.0,102820.0,0.424829]
[1747446906980,0.77348286,102830.0,102820.0,0.243032]
[1747446907185,1.09348286,102830.0,102820.0,0.243032]
[1747446907675,1.09348286,102830.0,102820.0,0.273132]
[1747446909373,1.08738433,102830.0,102820.0,0.273132]
[1747446910685,1.08738433,102830.0,102820.0,0.633132]
[1747446910887,1.01490116,102830.0,102820.0,0.633132]
[1747446911182,1.02262116,102830.0,102820.0,0.633132]
[1747446911385,0.69490116,102830.0,102820.0,0.664832]
[1747446912278,0.69290116,102830.0,102820.0,0.664832]
[1747446912679,1.01942116,102830.0,102820.0,0.664832]
[1747446913187,1.01942116,102830.0,102820.0,0.73731517]
[1747446913188,0.33110116,102830.0,102820.0,0.73731517]
[1747446913386,0.33110116,102830.0,102820.0,0.76961517]
[1747446913890,0.07468296,102830.0,102820.0,1.13041517]
[1747446914085,0.04238296,102830.0,102820.0,1.13041517]
[1747446914387,0.04238296,102830.0,102820.0,1.81041517]
[1747446914987,0.04238296,102830.0,102820.0,1.81141517]
[1747446915693,0.04238296,102830.0,102820.0,1.738932]
[1747446915992,0.23680126,102830.0,102820.0,1.81341517]
[1747446916185,0.23680126,102830.0,102820.0,1.380132]
[1747446916385,0.26830126,102830.0,102820.0,1.380132]
[1747446917282,0.26830126,102830.0,102820.0,1.378132]
[1747446917481,0.26830126,102830.0,102820.0,1.45061517]
[1747446917882,0.25207759,102830.0,102820.0,1.45061517]
[1747446918193,0.25207759,102830.0,102820.0,1.44961517]
[1747446920588,0.25207759,102830.0,102820.0,1.377132]
[1747446920891,0.25207759,102830.0,102820.0,1.44961517]
[1747446922184,0.25207759,102830.0,102820.0,1.377132]
[1747446925196,0.25207759,102830.0,102820.0,1.44961517]
[1747446925793,0.27440073,102830.0,102820.0,1.44961517]
[1747446926497,0.27440073,102830.0,102820.0,1.377132]
[1747446926694,0.27440073,102830.0,102820.0,1.44961517]
[1747446926998,0.7076839,102830.0,102820.0,1.2985238]
[1747446927186,0.30610073,102830.0,102820.0,1.1185238]
[1747446927389,0.27440073,102830.0,102820.0,1.1185238]
[1747446927692,0.27440073,102830.0,102820.0,0.69100697]
[1747446928195,0.27440073,102830.0,102820.0,0.6185238]
[1747446928400,0.30610073,102830.0,102820.0,0.6185238]
[1747446929390,0.67690073,102830.0,102820.0,0.6185238]
[1747446929697,0.31610073,102830.0,102820.0,0.6185238]
[1747446930395,0.31610073,102830.0,102820.0,0.5813146]
[1747446933098,0.3434847,102830.0,102820.0,0.5813146]
[1747446934290,0.7042847,102830.0,102820.0,0.5813146]
[1747446937102,0.0858664,102830.0,102820.0,1.01459777]
[1747446937305,0.0858664,102830.0,102820.0,1.16978905]
[1747446937306,0.2702846,102830.0,102820.0,1.16978905]
[1747446937596,0.24290063,102830.0,102820.0,1.16978905]
[1747446938202,0.24290063,102830.0,102820.0,1.17078905]
[1747446938705,0.27520063,102830.0,102820.0,0.80998905]
[1747446938904,0.27520063,102830.0,102820.0,0.81198905]
[1747446939202,0.79860063,102830.0,102820.0,0.7643146]
[1747446939703,0.79860063,102830.0,102820.0,0.7633146]
[1747446940108,0.79860063,102830.0,102820.0,0.5833146]
[1747446940704,0.79860063,102830.0,102820.0,0.5813146]
[1747446941206,0.75168362,102830.0,102820.0,0.5813146]
[1747446941505,0.79935807,102830.0,102820.0,0.5813146]
[1747446941801,0.79935807,102830.0,102820.0,0.5490146]
[1747446943006,0.80135807,102830.0,102820.0,0.5490146]
[1747446943207,0.67135807,102830.0,102820.0,0.0618]
[1747446943399,1.23578927,102830.0,102820.0,0.1944371]
[1747446944305,1.23678927,102830.0,102820.0,0.1944371]
[1747446944491,1.23678927,102830.0,102820.0,0.2249371]
[1747446945306,1.18911482,102830.0,102820.0,0.2249371]
[1747446945603,0.79050622,102830.0,102820.0,0.3462371]
[1747446946305,0.85315767,102830.0,102820.0,0.3462371]
[1747446946501,0.85115767,102830.0,102820.0,0.3462371]
[1747446947097,1.17507767,102830.0,102820.0,0.3462371]
[1747446947700,1.17707767,102830.0,102820.0,0.3462371]
[1747446948000,1.24874647,102830.0,102820.0,0.3462371]
[1747446948302,1.24874647,102830.0,102820.0,0.2249371]
[1747446948701,1.42874647,102830.0,102820.0,0.2249371]
[1747446948897,1.42974647,102830.0,102820.0,0.2249371]
[1747446949298,1.408943,102830.0,102820.0,0.2249371]
[1747446949497,1.408943,102830.0,102820.0,0.2551371]
[1747446952613,1.3362742,102830.0,102820.0,0.2551371]
[1747446953611,1.04922409,102830.0,102820.0,0.2551371]
[1747446953804,1.37234409,102830.0,102820.0,0.21792632]
[1747446954802,1.37234409,102830.0,102820.0,0.24802632]
[1747446956313,1.37234409,102830.0,102820.0,0.21792632]
[1747446957211,1.17234409,102830.0,102820.0,0.37792632]
[1747446957613,0.92189289,102830.0,102820.0,0.37792632]
[1747446957811,1.24457289,102830.0,102820.0,0.41092632]
[1747446958215,1.17190409,102830.0,102820.0,0.41092632]
[1747446958903,1.17090409,102830.0,102820.0,0.41092632]
[1747446959104,1.16890409,102830.0,102820.0,0.41092632]
[1747446959404,1.16288436,102830.0,102820.0,0.41092632]
[1747446959906,0.43079576,102830.0,102820.0,0.48359512]
[1747446960111,0.72055576,102830.0,102820.0,1.23439512]
[1747446960307,0.23688176,102830.0,102820.0,0.87359512]
[1747446960911,0.26948176,102830.0,102820.0,0.80092632]
[1747446962215,0.26948176,102830.0,102820.0,0.80192632]
[1747446963318,0.26948176,102830.0,102820.0,0.80392632]
[1747446964515,0.34215056,102830.0,102820.0,0.74072632]
[1747446964714,1.13625056,102830.0,102820.0,0.4079372]
[1747446964910,1.13625056,102830.0,102820.0,0.4059372]
[1747446965105,1.06358176,102830.0,102820.0,0.2259372]
[1747446965311,1.11126921,102830.0,102820.0,0.2249372]
[1747446965513,0.91126921,102830.0,102820.0,0.2249372]
[1747446966423,0.91326921,102830.0,102820.0,0.2249372]
[1747446967520,0.91426921,102830.0,102820.0,0.2249372]
[1747446967913,0.9470732,102830.0,102820.0,0.2249372]
[1747446969218,0.94730361,102830.0,102820.0,0.23495619]
[1747446969520,0.94730361,102830.0,102820.0,0.04051899]
[1747446970420,0.94730361,102830.0,102820.0,0.07371899]
[1747446971124,0.94753402,102830.0,102820.0,0.07371899]
[1747446971422,0.94753402,102830.0,102820.0,0.07394959]
[1747446973328,0.94776327,102830.0,102820.0,0.07417903]
[1747446973917,0.90007582,102830.0,102820.0,0.07417903]
[1747446974120,1.15776327,102830.0,102820.0,0.04097903]
[1747446974418,1.15776327,102830.0,102820.0,3e-08]
[1747446974619,0.194475,102800.0,102790.0,1.07341947]
[1747446974923,0.194475,102800.0,102790.0,1.55341947]
[1747446975117,0.194475,102800.0,102790.0,1.73341947]
[1747446975320,0.19695974,102800.0,102790.0,1.73341947]
[1747446976230,0.19695974,102800.0,102790.0,2.26871947]
[1747446976622,0.00248474,102800.0,102790.0,2.31640692]
[1747446977019,0.00248474,102800.0,102790.0,2.27171947]
[1747446977425,0.3403099,102810.0,102800.0,0.19176377]
[1747446977728,0.3403099,102810.0,102800.0,0.63315122]
[1747446978036,0.37730839,102810.0,102800.0,0.63315122]
[1747446978231,0.37730839,102810.0,102800.0,0.81315122]
[1747446978529,0.41000839,102810.0,102800.0,0.81315122]
[1747446978827,0.41000839,102810.0,102800.0,0.76646377]
[1747446979028,0.41000839,102810.0,102800.0,0.81415122]
[1747446979425,0.41000839,102810.0,102800.0,0.81615122]
[1747446979626,0.41000839,102810.0,102800.0,0.84915122]
[1747446980026,0.36139249,102810.0,102800.0,0.84915122]
[1747446981429,0.36139249,102810.0,102800.0,1.20995122]
[1747446981823,0.31277679,102810.0,102800.0,1.20995122]
[1747446982025,0.28007679,102810.0,102800.0,1.20995122]
[1747446982532,0.31277679,102810.0,102800.0,1.20995122]
[1747446982730,0.31664928,102810.0,102800.0,0.84915122]
[1747446983931,0.31664928,102810.0,102800.0,0.80146377]
[1747446984131,0.31664928,102810.0,102800.0,0.84915122]
[1747446984735,0.31664928,102810.0,102800.0,0.80146377]
[1747446984934,0.23533418,102810.0,102800.0,1.20995122]
[1747446985137,0.26803418,102810.0,102800.0,1.25763867]
[1747446985545,0.23533418,102810.0,102800.0,1.25763867]
[1747446986039,0.04087098,102810.0,102800.0,1.25763867]
[1747446987044,0.21910227,102810.0,102800.0,1.906197]
[1747446988936,0.02464627,102810.0,102800.0,1.906197]
[1747446991834,0.02464627,102810.0,102800.0,1.85850955]
[1747446992238,0.05784627,102810.0,102800.0,1.85850955]
[1747446993136,0.05784627,102810.0,102800.0,1.906197]
[1747446995143,0.05784627,102810.0,102800.0,1.8108221]
[1747446995339,0.05784627,102810.0,102800.0,1.906197]
[1747446997543,0.05784627,102810.0,102800.0,1.91163916]
[1747447011354,0.02464627,102810.0,102800.0,2.06163916]
[1747447011547,0.0321,102820.0,102810.0,0.194456]
[1747447011748,0.0321,102820.0,102810.0,1.04384345]
[1747447012246,0.0321,102820.0,102810.0,1.22384345]
[1747447012446,0.0321,102820.0,102810.0,1.72384345]
[1747447012855,0.0624,102820.0,102810.0,1.72384345]
[1747447014154,0.0624,102820.0,102810.0,1.72784345]
[1747447015364,0.0952,102820.0,102810.0,1.680156]
[1747447015560,0.0952,102820.0,102810.0,1.72784345]
[1747447015950,0.10524717,102820.0,102810.0,1.72784345]
[1747447017359,0.10524717,102820.0,102810.0,1.319356]
[1747447017552,0.10524717,102820.0,102810.0,1.72784345]
[1747447019762,0.07244717,102820.0,102810.0,1.72784345]
[1747447021655,0.10554717,102820.0,102810.0,1.72784345]
[1747447024165,0.04214717,102820.0,102810.0,1.72784345]
[1747447024958,0.0321,102820.0,102810.0,1.72784345]
[1747447025362,0.0628333,102830.0,102820.0,0.194437]
[1747447025660,0.0611333,102830.0,102820.0,1.1062119]
[1747447026158,0.0308333,102830.0,102820.0,1.1062119]
[1747447026358,0.0308333,102830.0,102820.0,1.4208519]
[1747447026558,0.0308333,102830.0,102820.0,1.4228519]
[1747447026966,0.0308333,102830.0,102820.0,1.9228519]
[1747447027364,0.0308333,102830.0,102820.0,2.3397519]
[1747447027564,0.06929849,102840.0,102830.0,0.1944183]
[1747447027773,0.06929849,102840.0,102830.0,1.05830575]
[1747447027965,0.06929849,102840.0,102830.0,1.19830575]
[1747447028759,0.06929849,102840.0,102830.0,1.69830575]
[1747447028959,0.04234578,102840.0,102830.0,1.69830575]
[1747447029160,0.04434578,102840.0,102830.0,1.69830575]
[1747447030478,0.04434578,102840.0,102830.0,1.70030575]
[1747447030774,0.04234578,102840.0,102830.0,1.70030575]
[1747447031266,0.04234578,102840.0,102830.0,1.6526183]
[1747447031469,0.04234578,102840.0,102830.0,1.70030575]
[1747447032372,0.04234578,102840.0,102830.0,1.71000117]
[1747447032872,0.04234578,102840.0,102830.0,2.02460117]
[1747447033074,0.04234578,102840.0,102830.0,2.44150117]
[1747447033275,0.05077647,102840.0,102830.0,2.44150117]
[1747447033467,0.08277647,102840.0,102830.0,2.43180575]
[1747447033663,0.27717577,102840.0,102830.0,2.0379183]
[1747447033874,0.11317647,102840.0,102830.0,1.6771183]
[1747447034061,0.48757577,102840.0,102830.0,1.72480575]
[1747447035177,0.29317647,102840.0,102830.0,1.72480575]
[1747447035367,0.29317647,102840.0,102830.0,2.08560575]
[1747447036481,0.29317647,102840.0,102830.0,1.72480575]
[1747447036673,0.48757567,102840.0,102830.0,1.6133183]
[1747447036879,0.8298992,102840.0,102830.0,1.6133183]
[1747447037074,0.69758665,102840.0,102830.0,1.4733183]
[1747447037375,1.06758665,102840.0,102830.0,1.1133183]
[1747447037571,1.1152741,102840.0,102830.0,0.002]
[1747447037778,0.87758665,102840.0,102830.0,0.002]
[1747447037968,0.87758665,102840.0,102830.0,0.1964181]
[1747447038169,1.05758665,102840.0,102830.0,0.1964181]
[1747447038976,1.05758665,102840.0,102830.0,0.1944181]
[1747447039180,1.05958665,102840.0,102830.0,0.1944181]
[1747447039577,1.05758665,102840.0,102830.0,0.1944181]
[1747447039779,1.06258665,102840.0,102830.0,0.1944181]
[1747447040080,1.1096326,102840.0,102830.0,0.16265102]
[1747447040380,0.88194515,102840.0,102830.0,0.59033847]
[1747447040582,1.19382515,102840.0,102830.0,0.59033847]
[1747447040772,0.32674595,102840.0,102830.0,0.65103847]
[1747447040973,0.32674595,102840.0,102830.0,1.01183847]
[1747447041274,0.29634595,102840.0,102830.0,1.03134411]
[1747447041472,0.29634595,102840.0,102830.0,1.06374411]
[1747447041680,0.29634595,102840.0,102830.0,0.99110886]
[1747447041985,0.29634595,102840.0,102830.0,1.09790886]
[1747447041986,0.29534595,102840.0,102830.0,1.09790886]
[1747447042175,0.32584595,102840.0,102830.0,1.09790886]
[1747447042367,0.52024525,102840.0,102830.0,1.09790886]
[1747447042572,0.51624525,102840.0,102830.0,1.09790886]
[1747447042778,0.51624525,102840.0,102830.0,1.09990886]
[1747447043483,0.51624525,102840.0,102830.0,1.17254411]
[1747447045980,0.51624525,102840.0,102830.0,0.90990886]
[1747447046188,0.4691993,102840.0,102830.0,0.90990886]
[1747447046382,0.4691993,102840.0,102830.0,0.84920886]
[1747447046582,0.5091993,102840.0,102830.0,0.99920886]
[1747447046787,0.8699993,102840.0,102830.0,0.99920886]
[1747447047177,0.4691993,102840.0,102830.0,0.99920886]
[1747447047378,0.4691993,102840.0,102830.0,1.06230886]
[1747447047883,0.4691993,102840.0,102830.0,1.49574411]
[1747447047884,0.2748,102840.0,102830.0,1.49574411]
[1747447048087,0.2891993,102840.0,102830.0,1.49374411]
[1747447048294,0.2891993,102840.0,102830.0,1.53228627]
[1747447048482,0.2891993,102840.0,102830.0,1.17148627]
[1747447048791,0.2911993,102840.0,102830.0,1.17348627]
[1747447049086,0.4711993,102840.0,102830.0,1.17348627]
[1747447049288,0.4711993,102840.0,102830.0,1.16804411]